bitfinex/quotes_BTCUSD_20250129
["timestamp","ask_amount","ask_price","bid_price","bid_amount"]
[1738187021112,0.45944937,103980.0,103970.0,1e-08]
[1738187021723,0.16535669,103980.0,103970.0,1e-08]
[1738187021925,0.1663145,103980.0,103970.0,1e-08]
[1738187022199,0.3163145,103980.0,103970.0,1e-08]
[1738187022413,0.16535669,103980.0,103970.0,0.14427201]
[1738187022899,0.02109869,103980.0,103970.0,0.24151517]
[1738187023778,0.01409869,103980.0,103970.0,0.24151517]
[1738187023991,0.00809869,103980.0,103970.0,0.36594845]
[1738187024202,0.01509869,103980.0,103970.0,0.62148218]
[1738187024429,0.01509869,103980.0,103970.0,0.67048218]
[1738187024640,0.01509869,103980.0,103970.0,2.17048218]
[1738187025493,0.00809869,103980.0,103970.0,2.17048218]
[1738187025958,0.00909869,103980.0,103970.0,2.17148218]
[1738187026167,0.00609869,103980.0,103970.0,2.18085686]
[1738187026380,0.00809869,103980.0,103970.0,2.18085686]
[1738187027008,0.00609869,103980.0,103970.0,2.18085686]
[1738187027222,0.00709869,103980.0,103970.0,2.18285686]
[1738187027434,0.00709869,103980.0,103970.0,2.20235971]
[1738187027994,0.00709869,103980.0,103970.0,0.70235971]
[1738187028206,0.00709869,103980.0,103970.0,0.73535971]
[1738187028407,0.00014356,104000.0,103990.0,0.221344]
[1738187028611,0.00014356,104000.0,103990.0,0.44302044]
[1738187028818,0.00014356,104000.0,103990.0,0.31858716]
[1738187029482,0.00014356,104000.0,103990.0,0.67088032]
[1738187029913,0.00114356,104000.0,103990.0,0.67188032]
[1738187030117,0.0055584,104000.0,103990.0,0.67188032]
[1738187030331,0.00114356,104000.0,103990.0,0.64102044]
[1738187030546,0.0065584,104000.0,103990.0,0.70485851]
[1738187030754,0.00214356,104000.0,103990.0,2.20585851]
[1738187030979,0.00661126,104000.0,103990.0,2.20585851]
[1738187031223,0.00214356,104000.0,103990.0,2.20585851]
[1738187031468,0.00291721,104000.0,103990.0,2.20585851]
[1738187031712,0.17845884,104040.0,104030.0,0.144189]
[1738187031966,0.17860336,104040.0,104030.0,0.24143216]
[1738187032422,0.32373617,104040.0,104030.0,0.24143216]
[1738187032667,0.32373617,104040.0,104020.0,0.720972]
[1738187032668,0.51501736,104040.0,104020.0,0.720972]
[1738187032865,0.144189,104030.0,104020.0,0.28949716]
[1738187033073,0.83170664,104040.0,104020.0,0.43369116]
[1738187033420,0.64746164,104040.0,104030.0,0.001]
[1738187033612,0.83970564,104040.0,104020.0,0.62596116]
[1738187034044,0.001,104030.0,104020.0,0.29549716]
[1738187034221,0.001,104030.0,104020.0,0.28949716]
[1738187036197,0.001,104030.0,104020.0,0.29249716]
[1738187036491,0.001,104030.0,104020.0,1.79249716]
[1738187036691,0.33077836,104040.0,104030.0,0.144189]
[1738187036900,0.49455852,104040.0,104020.0,0.48475616]
[1738187037132,0.001,104030.0,104020.0,0.49075616]
[1738187037572,0.001,104030.0,104020.0,0.48775616]
[1738187037905,0.29431952,104040.0,104030.0,0.144189]
[1738187038332,0.29931952,104040.0,104030.0,0.144189]
[1738187038540,0.30231952,104040.0,104030.0,0.144189]
[1738187039207,0.30881386,104040.0,104030.0,0.144189]
[1738187039630,0.69028886,104040.0,104020.0,0.62594916]
[1738187039844,0.145189,104030.0,104020.0,0.29549716]
[1738187040028,0.001,104030.0,104020.0,0.29549716]
[1738187040267,0.00647297,104030.0,104020.0,0.28949716]
[1738187040879,0.00677201,104030.0,104020.0,0.28949716]
[1738187041142,0.00777201,104030.0,104020.0,0.29649716]
[1738187041381,0.00677201,104030.0,104020.0,0.28949716]
[1738187041804,0.00777201,104030.0,104020.0,0.29849716]
[1738187042865,0.00777201,104030.0,104020.0,0.30249716]
[1738187043507,0.00677201,104030.0,104020.0,0.29349716]
[1738187043741,0.00677201,104030.0,104020.0,0.29949716]
[1738187043995,0.00777201,104030.0,104020.0,0.29949716]
[1738187044248,0.00777201,104030.0,104020.0,0.29349716]
[1738187044487,0.00877201,104030.0,104020.0,0.30249716]
[1738187044725,0.00777201,104030.0,104020.0,0.28949716]
[1738187044970,0.00877201,104030.0,104020.0,0.29549716]
[1738187045478,0.00677201,104030.0,104020.0,0.28949716]
[1738187046175,0.00677201,104030.0,104020.0,0.29249716]
[1738187046594,0.00777201,104030.0,104020.0,0.30149716]
[1738187047007,0.00677201,104030.0,104020.0,0.29249716]
[1738187047211,0.00777201,104030.0,104020.0,0.29849716]
[1738187047837,0.00777201,104030.0,104020.0,1.79849716]
[1738187048476,0.00777201,104030.0,104020.0,0.29849716]
[1738187053575,0.00129904,104030.0,104020.0,0.29849716]
[1738187056697,0.29548804,104030.0,104020.0,0.10624316]
[1738187056908,0.79472988,104030.0,104020.0,0.009]
[1738187057109,0.023,104020.0,104000.0,0.0001423]
[1738187057325,0.62594037,104010.0,104000.0,0.0001423]
[1738187057565,0.67068256,104010.0,104000.0,0.0001423]
[1738187057766,0.54624928,104010.0,104000.0,0.0001423]
[1738187057967,0.59976527,104010.0,104000.0,0.0001423]
[1738187058169,0.54624928,104010.0,104000.0,0.0001423]
[1738187058381,0.67068256,104010.0,104000.0,0.0001423]
[1738187059416,0.421816,104010.0,104000.0,0.0001423]
[1738187059827,0.421816,104010.0,104000.0,0.0091423]
[1738187060032,0.54724928,104010.0,104000.0,0.0091423]
[1738187061813,0.70864886,104010.0,104000.0,0.0091423]
[1738187062902,0.67168256,104010.0,104000.0,0.0091423]
[1738187063103,0.76892572,104010.0,104000.0,0.0091423]
[1738187063308,0.79192572,104010.0,104000.0,0.0091423]
[1738187064038,0.81192572,104010.0,104000.0,0.0091423]
[1738187064256,0.82092572,104010.0,104000.0,0.0031423]
[1738187064472,0.82992572,104010.0,104000.0,0.0031423]
[1738187064682,0.90080025,104010.0,104000.0,0.0031423]
[1738187065389,0.79692572,104010.0,104000.0,0.0001423]
[1738187065623,0.81092572,104010.0,104000.0,0.0001423]
[1738187065856,0.54824928,104010.0,104000.0,0.0001423]
[1738187066093,0.68168256,104010.0,104000.0,0.0001423]
[1738187066383,0.67968256,104010.0,104000.0,0.0001423]
[1738187066627,0.71720946,104010.0,104000.0,0.0001423]
[1738187066860,0.70820946,104010.0,104000.0,0.0001423]
[1738187067089,0.80556622,104010.0,104000.0,0.0001423]
[1738187067323,0.81345262,104010.0,104000.0,0.0001423]
[1738187067573,0.80445262,104010.0,104000.0,0.0001423]
[1738187067791,0.81345262,104010.0,104000.0,0.0001423]
[1738187068315,0.80792572,104010.0,104000.0,0.0001423]
[1738187070780,0.80792572,104010.0,103970.0,1e-08]
[1738187070781,0.15,103980.0,103970.0,1e-08]
[1738187070924,0.41964909,103980.0,103970.0,1e-08]
[1738187071135,0.41869128,103980.0,103970.0,1e-08]
[1738187071343,0.44719268,103980.0,103970.0,1e-08]
[1738187071564,0.76622588,103980.0,103970.0,1e-08]
[1738187071762,0.84582588,103980.0,103970.0,1e-08]
[1738187071969,0.86882588,103980.0,103970.0,1e-08]
[1738187072174,0.86882588,103980.0,103970.0,0.00014357]
[1738187072899,0.84832448,103980.0,103970.0,0.00014357]
[1738187073125,0.75096772,103980.0,103970.0,0.00014357]
[1738187073340,0.75996772,103980.0,103970.0,0.00014357]
[1738187075853,0.77952771,103980.0,103970.0,0.00014357]
[1738187076316,0.65928455,103980.0,103970.0,0.00014357]
[1738187076599,0.66904462,103980.0,103970.0,0.00014357]
[1738187078484,0.72171515,103980.0,103970.0,0.00014357]
[1738187078736,0.84195831,103980.0,103970.0,0.00014357]
[1738187080923,0.78928778,103980.0,103970.0,0.00014357]
[1738187082123,0.66904462,103980.0,103970.0,0.00014357]
[1738187083737,0.52505135,103980.0,103970.0,0.00014357]
[1738187084242,0.76972779,103980.0,103970.0,0.00014357]
[1738187084458,0.58230528,103970.0,103960.0,0.0001422]
[1738187084713,0.7769052,103970.0,103960.0,0.00062429]
[1738187084944,0.90133848,103970.0,103960.0,0.00062429]
[1738187085630,0.89133848,103970.0,103960.0,0.00062429]
[1738187085859,0.033,103960.0,103950.0,0.02447262]
[1738187086106,0.52435353,103960.0,103950.0,0.02447262]
[1738187086368,0.52339572,103960.0,103950.0,0.02447262]
[1738187087140,0.53239572,103960.0,103950.0,0.02447262]
[1738187087876,0.57752228,103960.0,103950.0,0.02447262]
[1738187088091,0.54039572,103960.0,103950.0,0.02447262]
[1738187088301,0.76939572,103960.0,103950.0,0.02447262]
[1738187088723,0.76939572,103960.0,103950.0,0.02461492]
[1738187090443,0.78893854,103960.0,103950.0,0.02461492]
[1738187091954,0.89610958,103960.0,103950.0,0.02461492]
[1738187093195,0.79875282,103960.0,103950.0,0.02461492]
[1738187093612,0.67431954,103960.0,103950.0,0.02461492]
[1738187093836,0.79875282,103960.0,103950.0,0.02461492]
[1738187096384,0.67431954,103960.0,103950.0,0.02461492]
[1738187096616,0.64477672,103960.0,103950.0,0.02461492]
[1738187098479,0.62177672,103960.0,103950.0,0.02461492]
[1738187100735,0.62207576,103960.0,103950.0,0.02461492]
[1738187101360,0.54307576,103960.0,103950.0,0.02461492]
[1738187102252,0.01729904,103960.0,103950.0,0.26615808]
[1738187102672,0.01729904,103960.0,103950.0,1.84125808]
[1738187103089,0.01729904,103960.0,103950.0,1.96569136]
[1738187103299,0.01729904,103960.0,103950.0,1.9198786]
[1738187103935,0.00929904,103960.0,103950.0,1.9198786]
[1738187104138,0.00029904,103960.0,103950.0,1.9198786]
[1738187104349,0.01829904,103960.0,103950.0,1.9198786]
[1738187104773,0.00029904,103960.0,103950.0,1.92933163]
[1738187104991,0.00129904,103960.0,103950.0,1.93033163]
[1738187105208,0.00229904,103960.0,103950.0,1.93033163]
[1738187106741,0.00229904,103960.0,103950.0,0.43033163]
[1738187107176,0.00229904,103960.0,103950.0,0.40041111]
[1738187108049,0.00229904,103960.0,103950.0,0.52484439]
[1738187108264,0.00229904,103960.0,103950.0,0.5547504]
[1738187108509,0.00229904,103960.0,103950.0,0.52484439]
[1738187108956,0.00229904,103960.0,103950.0,0.55474007]
[1738187109163,0.00229904,103960.0,103950.0,1.93030679]
[1738187109592,0.00229904,103960.0,103950.0,0.43030679]
[1738187110073,0.00229904,103960.0,103950.0,2.32917335]
[1738187110304,0.02885,104000.0,103990.0,0.144244]
[1738187110524,0.0293318,104000.0,103990.0,0.144244]
[1738187110734,0.0293318,104000.0,103990.0,0.36688194]
[1738187110950,0.0293318,104000.0,103990.0,0.24148716]
[1738187111551,0.00878063,104000.0,103990.0,0.24148716]
[1738187111936,0.00078063,104000.0,103990.0,0.24148716]
[1738187112144,0.00178063,104000.0,103990.0,0.24248716]
[1738187115242,0.00178063,104000.0,103990.0,0.25191695]
[1738187117662,0.00178063,104000.0,103990.0,0.37635023]
[1738187117884,0.00178063,104000.0,103990.0,1.87635023]
[1738187118096,0.00178063,104000.0,103990.0,1.95505023]
[1738187119372,0.00178063,104000.0,103990.0,1.75191695]
[1738187119577,0.00178063,104000.0,103990.0,0.25191695]
[1738187121337,0.14601063,104000.0,103990.0,0.24248716]
[1738187121553,0.14601063,104000.0,103990.0,0.145244]
[1738187122217,0.59569164,104000.0,103990.0,0.001]
[1738187122432,0.7159348,104000.0,103990.0,0.001]
[1738187122658,0.64498707,104000.0,103990.0,0.001]
[1738187123049,0.64798707,104000.0,103990.0,0.001]
[1738187123312,0.55074391,104000.0,103990.0,0.001]
[1738187123525,0.15,103990.0,103970.0,0.528978]
[1738187123735,0.67987481,103990.0,103970.0,0.528978]
[1738187124865,0.67987481,103990.0,103970.0,0.531978]
[1738187125066,0.68087481,103990.0,103970.0,0.540978]
[1738187125519,0.48854281,103990.0,103980.0,0.144258]
[1738187125762,0.487585,103990.0,103980.0,0.144258]
[1738187126771,0.67892,103990.0,103980.0,0.003]
[1738187126976,0.486585,103990.0,103980.0,0.009]
[1738187127180,0.487585,103990.0,103980.0,0.009]
[1738187128286,0.61201828,103990.0,103980.0,0.009]
[1738187129368,0.64041305,103990.0,103980.0,0.009]
[1738187130014,0.72231305,103990.0,103980.0,0.009]
[1738187134269,0.81955621,103990.0,103980.0,0.009]
[1738187136289,0.79116144,103990.0,103980.0,0.009]
[1738187136505,0.79146027,103990.0,103980.0,0.009]
[1738187139321,0.81999497,103990.0,103980.0,0.009]
[1738187142473,0.81895382,103990.0,103980.0,0.009]
[1738187143621,0.79041912,103990.0,103980.0,0.009]
[1738187151317,0.58408584,103990.0,103980.0,0.009]
[1738187152458,0.70851912,103990.0,103980.0,0.009]
[1738187153345,0.98500308,103990.0,103980.0,0.009]
[1738187153556,0.99500308,103990.0,103980.0,0.009]
[1738187153779,1.06140308,103990.0,103980.0,0.009]
[1738187154001,1.03140308,103990.0,103980.0,0.009]
[1738187154224,1.03140308,103990.0,103980.0,0.006]
[1738187154435,0.392972,103970.0,103960.0,0.0001423]
[1738187154623,0.26871928,103960.0,103950.0,0.02461492]
[1738187155697,0.144286,103960.0,103950.0,0.02461492]
[1738187155923,0.14524381,103960.0,103950.0,0.02461492]
[1738187157099,0.14624381,103960.0,103950.0,0.03061492]
[1738187157503,0.14624381,103960.0,103950.0,0.03361492]
[1738187161570,0.17486963,103960.0,103950.0,0.03361492]
[1738187161789,0.18433839,103960.0,103950.0,0.03361492]
[1738187162401,0.30877167,103960.0,103950.0,0.03361492]
[1738187162609,0.30781386,103960.0,103950.0,0.03361492]
[1738187164149,0.18338058,103960.0,103950.0,0.03361492]
[1738187164357,0.18433839,103960.0,103950.0,0.03361492]
[1738187164559,0.15571257,103960.0,103950.0,0.03361492]
[1738187165942,0.28014585,103960.0,103950.0,0.03361492]
[1738187166179,0.15475476,103960.0,103950.0,0.17791492]
[1738187166392,0.001,103960.0,103950.0,0.17791492]
[1738187166594,0.001,103960.0,103950.0,0.27612]
[1738187166806,0.001,103960.0,103950.0,0.27515808]
[1738187167133,0.001,103960.0,103950.0,1.77515808]
[1738187168446,0.42067709,103960.0,103950.0,0.03361492]
[1738187168651,0.41971928,103960.0,103950.0,0.03361492]
[1738187169277,0.5455517,103960.0,103950.0,0.03361492]
[1738187169485,0.72460846,103960.0,103950.0,0.03361492]
[1738187169689,0.74760846,103960.0,103950.0,0.03361492]
[1738187169859,0.75760846,103960.0,103950.0,0.03361492]
[1738187170073,0.88204174,103960.0,103950.0,0.03361492]
[1738187170457,0.75760846,103960.0,103950.0,0.03361492]
[1738187170657,0.85345248,103960.0,103950.0,0.03361492]
[1738187170859,0.85245248,103960.0,103950.0,0.02761492]
[1738187171073,0.86175131,103960.0,103950.0,0.02861492]
[1738187171276,0.73731803,103960.0,103950.0,0.02861492]
[1738187171599,0.76439455,103960.0,103950.0,0.02561492]
[1738187171996,0.77239455,103960.0,103950.0,0.02561492]
[1738187172206,0.82939455,103960.0,103950.0,6.355e-05]
[1738187172424,0.4453,103950.0,103940.0,6e-05]
[1738187172629,0.80140972,103950.0,103940.0,6e-05]
[1738187173036,0.89876648,103950.0,103940.0,6e-05]
[1738187173265,0.80140972,103950.0,103940.0,6e-05]
[1738187173470,0.66697644,103950.0,103940.0,6e-05]
[1738187173675,0.64397644,103950.0,103940.0,6e-05]
[1738187173884,0.1443,103950.0,103940.0,6e-05]
[1738187174088,0.26969109,103950.0,103940.0,6e-05]
[1738187174299,0.26873328,103950.0,103940.0,6e-05]
[1738187174487,0.42773328,103950.0,103940.0,6e-05]
[1738187174733,0.15,103950.0,103940.0,0.144374]
[1738187174944,0.159,103950.0,103940.0,0.144374]
[1738187175128,0.018,103950.0,103940.0,0.144374]
[1738187175356,0.018,103950.0,103940.0,0.24161716]
[1738187175562,0.15029883,103960.0,103950.0,0.1443]
[1738187175766,0.00029883,103960.0,103950.0,0.1443]
[1738187176126,0.02882678,103960.0,103950.0,0.1443]
[1738187176603,0.17882678,103960.0,103950.0,0.1443]
[1738187176976,0.02882678,103960.0,103950.0,0.32120511]
[1738187177171,0.02882678,103960.0,103950.0,0.32024316]
[1738187177370,0.02882678,103960.0,103950.0,0.44467644]
[1738187177545,0.02882678,103960.0,103950.0,0.36714316]
[1738187177754,0.03682678,103960.0,103950.0,0.36714316]
[1738187177951,0.03682678,103960.0,103950.0,1.86714316]
[1738187178157,0.02882678,103960.0,103950.0,1.99157644]
[1738187178436,0.03382678,103960.0,103950.0,1.99157644]
[1738187178651,0.02882678,103960.0,103950.0,1.86714316]
[1738187178853,0.03182678,103960.0,103950.0,1.86714316]
[1738187179087,0.03282678,103960.0,103950.0,1.86714316]
[1738187179300,0.02982678,103960.0,103950.0,1.86714316]
[1738187179517,0.02982678,103960.0,103950.0,1.88915991]
[1738187179736,0.00229883,103960.0,103950.0,1.88915991]
[1738187179947,0.00229883,103960.0,103950.0,1.87014316]
[1738187180407,0.00129883,103960.0,103950.0,1.87014316]
[1738187180630,0.00229883,103960.0,103950.0,1.87014316]
[1738187181055,0.00129883,103960.0,103950.0,1.87014316]
[1738187181268,0.00129883,103960.0,103950.0,0.37014316]
[1738187181456,0.00229883,103960.0,103950.0,0.36714316]
[1738187181679,0.00129883,103960.0,103950.0,0.36714316]
[1738187181823,0.00129883,103960.0,103950.0,0.37014316]
[1738187182243,0.00129883,103960.0,103950.0,0.30098727]
[1738187182478,0.00129883,103960.0,103950.0,0.25408727]
[1738187184676,0.14558483,103960.0,103950.0,0.24454316]
[1738187184844,0.00129883,103960.0,103950.0,0.24454316]
[1738187187029,0.14654264,103960.0,103950.0,0.003]
[1738187187173,0.14654264,103960.0,103950.0,0.1473]
[1738187187379,0.00129883,103960.0,103950.0,0.1473]
[1738187187771,0.14558483,103960.0,103950.0,0.003]
[1738187187969,0.14654264,103960.0,103950.0,0.003]
[1738187188170,0.14558483,103960.0,103950.0,0.1473]
[1738187189290,0.00129883,103960.0,103950.0,0.1473]
[1738187189492,0.17414323,103960.0,103950.0,0.1473]
[1738187190892,0.02985723,103960.0,103950.0,0.24454316]
[1738187192484,0.01913957,103960.0,103950.0,0.24454316]
[1738187193095,0.01913957,103960.0,103950.0,0.36897644]
[1738187193509,0.01913957,103960.0,103950.0,0.44567644]
[1738187193715,0.00129883,103960.0,103950.0,0.44567644]
[1738187194743,0.00129883,103960.0,103950.0,0.32124316]
[1738187196024,0.00129883,103960.0,103950.0,0.24468546]
[1738187196457,0.00129883,103960.0,103950.0,0.25429874]
[1738187196667,0.14558483,103960.0,103950.0,0.10038546]
[1738187196873,0.14558483,103960.0,103950.0,0.24468546]
[1738187197339,0.00129883,103960.0,103950.0,0.24468546]
[1738187198050,0.14558483,103960.0,103950.0,0.24468546]
[1738187198285,0.00129883,103960.0,103950.0,0.24468546]
[1738187198765,0.14558483,103960.0,103950.0,0.24468546]
[1738187198983,0.14558483,103960.0,103950.0,0.0031423]
[1738187198984,0.14654264,103960.0,103950.0,0.0031423]
[1738187199436,0.37141636,103960.0,103950.0,0.0031423]
[1738187199651,0.29558483,103960.0,103950.0,0.0031423]
[1738187202693,0.30499308,103960.0,103950.0,0.0031423]
[1738187203361,0.33352103,103960.0,103950.0,0.0031423]
[1738187206016,0.53345431,103960.0,103950.0,0.0031423]
[1738187208087,0.60216952,103960.0,103950.0,0.0031423]
[1738187208312,0.69952628,103960.0,103950.0,0.0031423]
[1738187208806,0.64776952,103960.0,103950.0,0.0031423]
[1738187209001,0.64776952,103960.0,103950.0,0.0001423]
[1738187209401,0.64676952,103960.0,103950.0,0.0001423]
[1738187209921,0.65576952,103960.0,103950.0,0.0001423]
[1738187210352,0.66376952,103960.0,103950.0,0.0001423]
[1738187213061,0.76112628,103960.0,103950.0,0.0001423]
[1738187213683,0.66376952,103960.0,103950.0,0.0001423]
[1738187213912,0.68676952,103960.0,103950.0,0.0001423]
[1738187214147,0.8212028,103960.0,103950.0,0.0001423]
[1738187215604,0.8122028,103960.0,103950.0,0.0001423]
[1738187215805,0.8042028,103960.0,103950.0,0.0001423]
[1738187216006,0.023,103950.0,103940.0,0.00016321]
[1738187216210,0.64276753,103950.0,103940.0,0.00016321]
[1738187216441,0.64180972,103950.0,103940.0,0.00016321]
[1738187216654,0.89916648,103950.0,103940.0,0.00016321]
[1738187217404,0.81080972,103950.0,103940.0,0.00016321]
[1738187217603,0.15,103940.0,103920.0,0.0001422]
[1738187217809,0.82810972,103950.0,103890.0,0.08625007]
[1738187217810,0.426269,103900.0,103890.0,0.08625007]
[1738187218202,0.67094544,103900.0,103890.0,0.08639484]
[1738187218417,0.90273548,103900.0,103890.0,0.08639484]
[1738187218634,0.80537872,103900.0,103890.0,0.08639484]
[1738187219108,0.80637872,103900.0,103890.0,0.08639484]
[1738187219327,0.82537872,103900.0,103890.0,0.08639484]
[1738187219533,0.81537872,103900.0,103890.0,0.08639484]
[1738187219740,0.92073548,103900.0,103890.0,0.08639484]
[1738187220617,0.70894544,103900.0,103890.0,0.08639484]
[1738187221030,0.71094544,103900.0,103890.0,0.08639484]
[1738187221238,0.83537872,103900.0,103890.0,0.00028707]
[1738187221470,0.82537872,103900.0,103890.0,0.00028707]
[1738187222516,0.81537872,103900.0,103890.0,0.00028707]
[1738187222760,0.91273548,103900.0,103890.0,0.00028707]
[1738187222970,0.231997,103880.0,103870.0,0.0154918]
[1738187223185,0.47667344,103880.0,103870.0,0.0154918]
[1738187223399,0.62667344,103880.0,103870.0,0.0154918]
[1738187223612,0.61667344,103880.0,103870.0,0.0154918]
[1738187223819,0.7240302,103880.0,103870.0,0.0154918]
[1738187224310,0.75246263,103880.0,103870.0,0.0154918]
[1738187224534,0.79916263,103880.0,103870.0,0.0154918]
[1738187224751,0.82116263,103880.0,103870.0,0.0154918]
[1738187225360,0.81916263,103880.0,103870.0,0.0154918]
[1738187225581,0.85329238,103880.0,103870.0,0.0154918]
[1738187225795,0.84529238,103880.0,103870.0,0.0154918]
[1738187226004,0.85429238,103880.0,103870.0,0.0154918]
[1738187226417,0.79685995,103880.0,103870.0,0.0154918]
[1738187226630,0.82585995,103880.0,103870.0,0.0154918]
[1738187226857,0.81885995,103880.0,103870.0,0.0154918]
[1738187227080,0.80985995,103880.0,103870.0,0.0154918]
[1738187227290,0.81885995,103880.0,103870.0,0.0154918]
[1738187227706,0.80985995,103880.0,103870.0,0.0154918]
[1738187228156,0.81885995,103880.0,103870.0,0.0154918]
[1738187228358,0.69150319,103880.0,103870.0,0.0154918]
[1738187228558,0.65950319,103880.0,103870.0,0.0154918]
[1738187228790,0.49037344,103880.0,103870.0,0.0154918]
[1738187228921,0.162397,103880.0,103870.0,0.0154918]
[1738187229134,0.15435481,103880.0,103870.0,0.0154918]
[1738187229342,0.28778809,103880.0,103870.0,0.0154918]
[1738187229543,0.28683028,103880.0,103870.0,0.0154918]
[1738187229744,0.60250158,103880.0,103870.0,0.0154918]
[1738187229949,0.63450158,103880.0,103870.0,0.0154918]
[1738187230150,0.64531523,103880.0,103870.0,0.0154918]
[1738187230357,0.77681523,103880.0,103870.0,0.0154918]
[1738187230570,0.76781523,103880.0,103870.0,0.0154918]
[1738187231006,0.77681523,103880.0,103870.0,0.0154918]
[1738187231215,0.04534727,103880.0,103870.0,0.1599028]
[1738187232081,0.18074427,103880.0,103870.0,0.1599028]
[1738187232394,0.17674427,103880.0,103870.0,0.1600451]
[1738187232678,0.33574427,103880.0,103870.0,0.1600451]
[1738187233233,0.154,103880.0,103870.0,0.1600451]
[1738187233449,0.162,103880.0,103870.0,0.1600451]
[1738187233657,0.158,103880.0,103870.0,0.1600451]
[1738187233864,0.16,103880.0,103870.0,0.1600451]
[1738187233996,0.304397,103880.0,103870.0,0.1600451]
[1738187234212,0.16,103880.0,103870.0,0.1600451]
[1738187234721,0.304397,103880.0,103870.0,0.1600451]
[1738187234947,0.16,103880.0,103870.0,0.1600451]
[1738187235191,0.01,103880.0,103870.0,0.1600451]
[1738187236379,0.19873012,103880.0,103870.0,0.0156341]
[1738187236568,0.4675604,103880.0,103870.0,0.0156341]
[1738187236765,0.52607344,103880.0,103870.0,0.0156341]
[1738187237187,0.40164016,103880.0,103870.0,0.0156341]
[1738187237435,0.52607344,103880.0,103870.0,0.0156341]
[1738187237840,0.40164016,103880.0,103870.0,0.0156341]
[1738187239620,0.41119729,103880.0,103870.0,0.0156341]
[1738187241948,0.61683057,103880.0,103870.0,0.0156341]
[1738187244963,0.51958741,103880.0,103870.0,0.0156341]
[1738187245165,0.304397,103880.0,103870.0,0.0156341]
[1738187245597,0.42883028,103880.0,103870.0,0.0156341]
[1738187246203,0.304397,103880.0,103870.0,0.0156341]
[1738187246812,0.16,103880.0,103870.0,0.1600451]
[1738187247369,0.01,103880.0,103870.0,0.1600451]
[1738187247530,0.01,103880.0,103870.0,0.16100777]
[1738187247861,0.154397,103880.0,103870.0,0.1600451]
[1738187248087,0.01,103880.0,103870.0,0.1600451]
[1738187248282,0.154397,103880.0,103870.0,0.1600451]
[1738187248585,0.01,103880.0,103870.0,0.1600451]
[1738187249251,0.03865781,103880.0,103870.0,0.1600451]
[1738187250688,0.03865781,103880.0,103870.0,0.25825093]
[1738187250979,0.03865781,103880.0,103870.0,0.25728826]
[1738187252868,0.01,103880.0,103870.0,0.25728826]
[1738187255785,0.154397,103880.0,103870.0,0.1600451]
[1738187255960,0.01,103880.0,103870.0,0.1600451]
[1738187258241,0.03866916,103880.0,103870.0,0.25825091]
[1738187258444,0.03866916,103880.0,103870.0,0.25728826]
[1738187259843,0.01,103880.0,103870.0,0.25728826]
[1738187260043,0.01,103880.0,103870.0,0.1600451]
[1738187261290,0.154397,103880.0,103870.0,0.1600451]
[1738187261493,0.154397,103880.0,103870.0,0.0156341]
[1738187261699,0.154397,103880.0,103870.0,0.1600451]
[1738187261891,0.27883028,103880.0,103870.0,0.1600451]
[1738187262125,0.01,103880.0,103870.0,0.1600451]
[1738187263104,0.154397,103880.0,103870.0,0.1600451]
[1738187264183,0.154397,103880.0,103870.0,0.0156341]
[1738187264388,0.27978809,103880.0,103870.0,0.0156341]
[1738187264634,0.35953028,103880.0,103870.0,0.0156341]
[1738187264850,0.35953028,103880.0,103870.0,0.1600451]
[1738187265992,0.235097,103880.0,103870.0,0.1600451]
[1738187267016,0.154397,103880.0,103870.0,0.1600451]
[1738187267349,0.27883028,103880.0,103870.0,0.1600451]
[1738187269127,0.154397,103880.0,103870.0,0.1600451]
[1738187271726,0.03871274,103880.0,103870.0,0.1600451]
[1738187272467,0.18310974,103880.0,103870.0,0.1600451]
[1738187272878,0.15535481,103880.0,103870.0,0.1600451]
[1738187273093,0.01,103880.0,103870.0,0.1600451]
[1738187276038,0.01,103880.0,103870.0,1.6600451]
[1738187278947,0.01,103880.0,103870.0,0.1600451]
[1738187279532,0.01,103880.0,103870.0,1.6600451]
[1738187280433,0.01,103880.0,103870.0,0.1600451]
[1738187280788,0.01,103880.0,103870.0,1.6600451]
[1738187281437,0.01,103880.0,103870.0,0.1600451]
[1738187283578,0.00029883,103890.0,103880.0,0.294397]
[1738187283793,0.00029883,103890.0,103880.0,0.69293922]
[1738187283999,0.00029883,103890.0,103880.0,2.17293922]
[1738187284249,0.00029883,103890.0,103880.0,1.89850594]
[1738187284455,0.00029883,103890.0,103880.0,1.81820594]
[1738187284712,0.00029883,103890.0,103880.0,1.77170594]
[1738187285078,0.00129883,103890.0,103880.0,0.27270594]
[1738187285473,0.00129883,103890.0,103880.0,1.77270594]
[1738187285770,0.00229883,103890.0,103880.0,1.78070594]
[1738187285965,0.00229883,103890.0,103880.0,0.28070594]
[1738187286380,0.00229883,103890.0,103880.0,0.25064016]
[1738187286585,0.00229883,103890.0,103880.0,1.78065887]
[1738187288022,0.00229883,103890.0,103880.0,0.63619215]
[1738187288220,0.00229883,103890.0,103880.0,0.68599215]
[1738187288464,0.00229883,103890.0,103880.0,0.73899215]
[1738187288668,0.00229883,103890.0,103880.0,2.23899215]
[1738187288871,0.00229883,103890.0,103880.0,2.23859654]
[1738187289078,0.00229883,103890.0,103880.0,2.24859654]
[1738187289284,8.3e-07,103890.0,103880.0,2.24859654]
[1738187290597,8.3e-07,103890.0,103880.0,2.37302982]
[1738187290803,8.3e-07,103890.0,103880.0,2.24859654]
[1738187291478,8.3e-07,103890.0,103880.0,2.37302982]
[1738187291684,0.00044322,103900.0,103890.0,0.226483]
[1738187291861,0.00044322,103900.0,103890.0,0.60261143]
[1738187292639,2.2e-07,103900.0,103890.0,2.45371143]
[1738187292839,2.2e-07,103900.0,103890.0,0.95871143]
[1738187293041,0.00100022,103900.0,103890.0,0.84327815]
[1738187293432,0.00100022,103900.0,103890.0,2.34327815]
[1738187293903,2.2e-07,103900.0,103890.0,2.34327815]
[1738187294080,2.2e-07,103900.0,103890.0,2.46271143]
[1738187294437,0.1242,103950.0,103900.0,0.03]
[1738187294624,0.12434469,103950.0,103940.0,0.144314]
[1738187295565,0.00014469,103950.0,103940.0,0.24251917]
[1738187295767,0.00014469,103950.0,103940.0,0.24155716]
[1738187296218,0.00014469,103950.0,103940.0,0.24255716]
[1738187296219,0.00114469,103950.0,103940.0,0.24255716]
[1738187296660,0.00114469,103950.0,103940.0,0.36699044]
[1738187297074,0.00114469,103950.0,103940.0,0.24255716]
[1738187297487,0.00114469,103950.0,103940.0,1.74255716]
[1738187297742,0.00414469,103950.0,103940.0,1.74155716]
[1738187297947,0.00314469,103950.0,103940.0,1.74155716]
[1738187298145,0.00014469,103950.0,103940.0,1.74655716]
[1738187298534,0.00014469,103950.0,103940.0,1.74855716]
[1738187300075,0.00014469,103950.0,103940.0,1.87299044]
[1738187300686,0.00014469,103950.0,103940.0,0.37299044]